fUST/lending_fUST_20260116
["ID","MTS","AMOUNT","RATE_DAILY","PERIOD"]
[402111144,1768522239392,-227.85430935,0.00019939,5]
[402111145,1768522239402,-151.0,0.00019939,5]
[402111146,1768522239412,-250.0,0.00019939,5]
[402111147,1768522239422,-181.08010149,0.00019939,5]
[402111148,1768522239432,-151.0,0.00019939,5]
[402111149,1768522239441,-1000.0,0.00019939,5]
[402111150,1768522239450,-250.0,0.00019939,5]
[402111151,1768522239460,-187.78006525,0.00019939,5]
[402111152,1768522239469,-151.0,0.00019939,5]
[402111153,1768522239479,-1000.0,0.00019939,5]
[402111154,1768522239489,-250.0,0.00019939,5]
[402111155,1768522239499,-194.72792766,0.00019939,5]
[402111157,1768522239508,-151.0,0.00019939,5]
[402111159,1768522239519,-1000.0,0.00019939,5]
[402111162,1768522239528,-250.0,0.00019939,5]
[402111164,1768522239539,-201.93286099,0.00019939,5]
[402111166,1768522239548,-151.0,0.00019939,5]
[402111168,1768522239557,-323.29083411,0.00019939,5]
[402111170,1768522239566,-1000.0,0.00019939,5]
[402111172,1768522239576,-151.0,0.00019939,5]
[402111175,1768522239585,-1000.0,0.00019939,5]
[402111177,1768522239595,-151.0,0.00019939,5]
[402111179,1768522239604,-250.0,0.00019939,5]
[402111181,1768522239614,-151.0,0.00019939,5]
[402111184,1768522239624,-1000.0,0.00019939,5]
[402111186,1768522239635,-250.0,0.00019939,5]
[402111188,1768522239646,-151.0,0.00019939,5]
[402111190,1768522239656,-1000.0,0.00019939,5]
[402111192,1768522239665,-151.0,0.00019939,5]
[402111194,1768522239674,-250.0,0.00019939,5]
[402111196,1768522239683,-151.0,0.00019939,5]
[402111198,1768522239693,-1000.0,0.00019939,5]
[402111200,1768522239702,-242.59349996,0.00019939,5]
[402111202,1768522239711,-250.0,0.00019939,5]
[402111205,1768522239722,-198.1626915,0.00019939,5]
[402111208,1768522239732,-250.0,0.00019939,5]
[402111211,1768522239742,-250.0,0.00019939,5]
[402111213,1768522239752,-1000.0,0.00019939,5]
[402111215,1768522239761,-250.0,0.00019939,5]
[402111217,1768522239772,-250.0,0.00019939,5]
[402111219,1768522239782,-1000.0,0.00019939,5]
[402111221,1768522239792,-250.0,0.00019939,5]
[402111223,1768522239803,-380.99585983,0.00019939,5]
[402111225,1768522239814,-1000.0,0.00019939,5]
[402111227,1768522239824,-250.0,0.00019939,5]
[402111229,1768522239834,-1000.0,0.00019939,5]
[402111231,1768522239844,-250.0,0.00019939,5]
[402111233,1768522239856,-209.40437684,0.00019939,5]
[402111235,1768522239866,-250.0,0.00019939,5]
[402111237,1768522239878,-217.15233878,0.00019939,5]
[402111239,1768522239889,-273.53456012,0.00019939,5]
[402111242,1768522239898,-225.18697532,0.00019939,5]
[402111243,1768522239908,-151.0,0.00019939,5]
[402111245,1768522239918,-233.51889341,0.00019939,5]
[402111248,1768522239928,-151.0,0.00019939,5]
[402111250,1768522239938,-242.15909246,0.00019939,5]
[402111252,1768522239948,-151.0,0.00019939,5]
[402111254,1768522239957,-251.11897888,0.00019939,5]
[402111256,1768522239967,-151.0,0.00019939,5]
[402111290,1768522240292,-260.4103811,0.00019939,5]
[402111291,1768522240305,-151.0,0.00019939,5]
[402111292,1768522240315,-270.0455652,0.00019939,5]
[402111293,1768522240325,-151.0,0.00019939,5]
[402111294,1768522240334,-280.03725112,0.00019939,5]
[402111295,1768522240345,-250.0,0.00019939,5]
[402111296,1768522240354,-2150.738,0.00019939,5]
[402111297,1768522240364,-290.39862941,0.00019939,5]
[402111298,1768522240374,-301.1433787,0.00019939,5]
[402111299,1768522240384,-2230.315306,0.00019939,5]
[402111300,1768522240394,-2312.83697232,0.00019939,5]
[402111301,1768522240405,-151.0,0.00019939,5]
[402111302,1768522240416,-2398.4119403,0.00019939,5]
[402111303,1768522240426,-151.0,0.00019939,5]
[402111304,1768522240436,-2487.15318209,0.00019939,5]
[402111305,1768522240446,-151.0,0.00019939,5]
[402111306,1768522240456,-1158.25313548,0.00019939,5]
[402111307,1768522240465,-151.0,0.00019939,5]
[402111308,1768522240475,-151.0,0.00019939,5]
[402111309,1768522240484,-151.0,0.00019939,5]
[402111310,1768522240494,-151.0,0.00019939,5]
[402111311,1768522240504,-187.96041165,0.00019939,5]
[402111312,1768522240514,-965953.50341677,0.0001995,2]
[402111313,1768522240524,-1000.0,0.0001996,5]
[402111314,1768522240534,-1000.0,0.0001998,5]
[402111315,1768522240544,-281.84834545,0.0001998,2]
[402111316,1768522240554,-1126.26598843,0.0001998,2]
[402111317,1768522240564,-3093.66736919,0.0001999,2]
[402111318,1768522240580,-446.94503474,0.0001999,2]
[402111319,1768522240592,-920.0098551,0.0001999,2]
[402111320,1768522240604,-1586.21195227,0.0001999,2]
[402111321,1768522240616,-2352.00076887,0.0001999,2]
[402111322,1768522240630,-1076.576635,0.0001999,2]
[402111323,1768522240641,-3073.821,0.0001999,2]
[402111324,1768522240652,-35644.56465904,0.0001999,2]
[402111325,1768522240663,-3006.72,0.0001999,2]
[402111326,1768522240674,-2739.5793,0.0001999,2]
[402111333,1768522241039,-178.0,0.00014849,2]
[402111335,1768522241049,-178.0,0.00017849,2]
[402111336,1768522241059,-572.00674222,0.0001999,2]
[402111586,1768522243633,-417.0,0.00011849,2]
[402111588,1768522243643,-417.0,0.00014849,2]
[402111590,1768522243652,-417.0,0.00017849,2]
[402111593,1768522243661,-782.13085028,0.0001999,2]
[402111671,1768522246226,-1422.31461751,0.0001999,2]
[402111747,1768522878967,300.0,8.364e-05,2]
[402111884,1768523359473,-772.11983797,8.944e-05,2]
[402111885,1768523359523,-3376.00032406,8.944e-05,2]
[402111886,1768523359709,-4920.24,8.944e-05,2]
[402111887,1768523359741,-159.53,8.944e-05,2]
[402111934,1768523432060,-300.0,9.041e-05,2]
[402111935,1768523432072,-288.0,9.041e-05,2]
[402111936,1768523432083,-525.68375377,9.041e-05,2]
[402111938,1768523432097,-674.31624623,9.041e-05,2]
[402111940,1768523432107,-300.0,9.041e-05,2]
[402111942,1768523432116,-300.0,9.041e-05,2]
[402111943,1768523432126,-547.0,9.041e-05,2]
[402111944,1768523432136,-216.1198858,9.041e-05,2]
[402111945,1768523432145,-500.0,9.043e-05,2]
[402111946,1768523432156,-500.0,9.043e-05,2]
[402111948,1768523432165,-174.65884752,9.043e-05,2]
[402111950,1768523432181,-325.34115248,9.043e-05,2]
[402111951,1768523432192,-500.0,9.043e-05,2]
[402111952,1768523432201,-403.33442215,9.043e-05,2]
[402111953,1768523432212,-96.66557785,9.043e-05,2]
[402111954,1768523432222,-500.0,9.043e-05,2]
[402111955,1768523432232,-500.0,9.043e-05,2]
[402111956,1768523432242,-500.0,9.043e-05,2]
[402111957,1768523432252,-500.0,9.043e-05,2]
[402111958,1768523432261,-500.0,9.043e-05,2]
[402111959,1768523432271,-500.0,9.043e-05,2]
[402111960,1768523432281,-500.0,9.043e-05,2]
[402111961,1768523432290,-500.0,9.043e-05,2]
[402111962,1768523432300,-500.0,9.043e-05,2]
[402111963,1768523432310,-501.64193605,9.043e-05,2]
[402111964,1768523432319,-500.0,9.043e-05,2]
[402111965,1768523432329,-500.0,9.043e-05,2]
[402111966,1768523432339,-500.0,9.043e-05,2]
[402111967,1768523432349,-500.0,9.043e-05,2]
[402111968,1768523432359,-500.0,9.043e-05,2]
[402111969,1768523432368,-414.56211,9.043e-05,2]
[402111970,1768523432452,-85.43789,9.043e-05,2]
[402111971,1768523432462,-500.0,9.043e-05,2]
[402111972,1768523432478,-500.0,9.043e-05,2]
[402111973,1768523432488,-436.90728766,9.043e-05,2]
[402111974,1768523432499,-500.0,9.043e-05,2]
[402111975,1768523432509,-500.0,9.043e-05,2]
[402111976,1768523432518,-500.0,9.043e-05,2]
[402111977,1768523432528,-500.0,9.043e-05,2]
[402111978,1768523432541,-500.0,9.043e-05,2]
[402111979,1768523432551,-500.0,9.043e-05,2]
[402111980,1768523432561,-500.0,9.043e-05,2]
[402111981,1768523432571,-500.0,9.043e-05,2]
[402111982,1768523432580,-500.0,9.043e-05,2]
[402111983,1768523432590,-500.0,9.043e-05,2]
[402111984,1768523432600,-500.0,9.043e-05,2]
[402111985,1768523432610,-500.0,9.043e-05,2]
[402111986,1768523432619,-500.0,9.043e-05,2]
[402111987,1768523432630,-600.16419361,9.043e-05,2]
[402111988,1768523432639,-500.0,9.043e-05,2]
[402111989,1768523432651,-500.0,9.043e-05,2]
[402111990,1768523432662,-500.0,9.043e-05,2]
[402111991,1768523432671,-500.0,9.043e-05,2]
[402111992,1768523432681,-500.0,9.043e-05,2]
[402111993,1768523432691,-500.0,9.043e-05,2]
[402111994,1768523432701,-500.0,9.043e-05,2]
[402111995,1768523432711,-500.0,9.043e-05,2]
[402111996,1768523432721,-500.0,9.043e-05,2]
[402111997,1768523432730,-571.57924656,9.043e-05,2]
[402111998,1768523432740,-500.0,9.043e-05,2]
[402111999,1768523432750,-500.0,9.043e-05,2]
[402112000,1768523432759,-500.0,9.043e-05,2]
[402112001,1768523432769,-500.0,9.043e-05,2]
[402112002,1768523432779,-500.0,9.043e-05,2]
[402112003,1768523432788,-500.0,9.043e-05,2]
[402112004,1768523432798,-500.0,9.043e-05,2]
[402112005,1768523432808,-650.0,9.043e-05,2]
[402112006,1768523432818,-500.0,9.043e-05,2]
[402112007,1768523432833,-500.0,9.043e-05,2]
[402112008,1768523432843,-500.0,9.043e-05,2]
[402112009,1768523432852,-500.0,9.043e-05,2]
[402112010,1768523432863,-500.0,9.043e-05,2]
[402112011,1768523432872,-500.0,9.043e-05,2]
[402112012,1768523432885,-409.78159645,9.043e-05,2]
[402112013,1768523432897,-90.21840355,9.043e-05,2]
[402112014,1768523432907,-500.0,9.043e-05,2]
[402112015,1768523432917,-46.98892086,9.043e-05,2]
[402112052,1768523438358,-453.01107914,9.043e-05,2]
[402112054,1768523438367,-500.0,9.043e-05,2]
[402112057,1768523438378,-404.75028152,9.043e-05,2]
[402112058,1768523438387,-500.0,9.043e-05,2]
[402112061,1768523438397,-389.04639414,9.043e-05,2]
[402112063,1768523438413,-110.95360586,9.043e-05,2]
[402112065,1768523438423,-500.0,9.043e-05,2]
[402112067,1768523438432,-500.0,9.043e-05,2]
[402112069,1768523438442,-500.0,9.043e-05,2]
[402112071,1768523438453,-500.0,9.043e-05,2]
[402112073,1768523438463,-500.0,9.043e-05,2]
[402112075,1768523438474,-500.0,9.043e-05,2]
[402112077,1768523438484,-500.0,9.043e-05,2]
[402112079,1768523438494,-603.50136783,9.043e-05,2]
[402112081,1768523438504,-300.0,9.224e-05,2]
[402112083,1768523438513,-300.0,9.224e-05,2]
[402112085,1768523438523,-300.0,9.224e-05,2]
[402112087,1768523438534,-300.0,9.224e-05,2]
[402112089,1768523438554,-300.0,9.224e-05,2]
[402112091,1768523438572,-300.0,9.224e-05,2]
[402112093,1768523438592,-300.0,9.224e-05,2]
[402112095,1768523438613,-300.0,9.224e-05,2]
[402112097,1768523438626,-300.0,9.224e-05,2]
[402112099,1768523438636,-300.0,9.224e-05,2]
[402112101,1768523438649,-300.0,9.224e-05,2]
[402112103,1768523438660,-300.0,9.224e-05,2]
[402112105,1768523438671,-300.0,9.224e-05,2]
[402112107,1768523438684,-300.0,9.224e-05,2]
[402112109,1768523438698,-300.0,9.224e-05,2]
[402112111,1768523438709,-600.0,9.224e-05,2]
[402112113,1768523438720,-157.55153556,9.224e-05,2]
[402112115,1768523438731,-420.0,9.945e-05,2]
[402112117,1768523438741,-720.0,0.00010146,2]
[402112118,1768523438752,-500.0,0.000104,2]
[402112120,1768523438764,-500.0,0.000104,2]
[402112123,1768523438776,-500.0,0.000104,2]
[402112124,1768523438789,-500.0,0.000104,2]
[402112126,1768523438809,-500.0,0.000104,2]
[402112128,1768523438827,-500.0,0.000104,2]
[402112130,1768523438837,-500.0,0.000104,2]
[402112132,1768523438847,-500.0,0.000104,2]
[402112134,1768523438858,-500.0,0.000104,2]
[402112136,1768523438868,-500.0,0.000104,2]
[402112138,1768523438881,-500.0,0.000104,2]
[402112140,1768523438890,-500.0,0.000104,2]
[402112142,1768523438900,-500.0,0.000104,2]
[402112144,1768523438910,-500.0,0.000104,2]
[402112146,1768523438922,-500.0,0.000104,2]
[402112148,1768523438933,-500.0,0.000104,2]
[402112150,1768523438944,-1000.0,0.000104,2]
[402112152,1768523438954,-500.0,0.000104,2]
[402112154,1768523438965,-500.0,0.000104,2]
[402112156,1768523438975,-1000.0,0.000104,2]
[402112158,1768523438986,-500.0,0.000104,2]
[402112160,1768523438998,-500.0,0.000104,2]
[402112162,1768523439009,-1000.0,0.000104,2]
[402112164,1768523439020,-500.0,0.000104,2]
[402112166,1768523439029,-500.0,0.000104,2]
[402112168,1768523439040,-1000.0,0.000104,2]
[402112169,1768523439051,-500.0,0.000104,2]
[402112171,1768523439060,-500.0,0.000104,2]
[402112173,1768523439070,-1000.0,0.000104,2]
[402112174,1768523439081,-500.0,0.000104,2]
[402112176,1768523439091,-500.0,0.000104,2]
[402112178,1768523439101,-1000.0,0.000104,2]
[402112179,1768523439112,-576.82505994,0.000104,2]
[402112181,1768523439123,-500.0,0.000104,2]
[402112183,1768523439135,-1000.0,0.000104,2]
[402112185,1768523439146,-500.0,0.000104,2]
[402112186,1768523439156,-1000.0,0.000104,2]
[402112188,1768523439167,-500.0,0.000104,2]
[402112190,1768523439177,-1000.0,0.000104,2]
[402112191,1768523439186,-500.0,0.000104,2]
[402112193,1768523439198,-1000.0,0.000104,2]
[402112195,1768523439223,-500.0,0.000104,2]
[402112197,1768523439234,-1000.0,0.000104,2]
[402112199,1768523439246,-1000.0,0.000104,2]
[402112200,1768523439255,-500.0,0.000104,2]
[402112202,1768523439264,-500.0,0.000104,2]
[402112204,1768523439273,-1000.0,0.000104,2]
[402112205,1768523439284,-751.63608131,0.000104,2]
[402112207,1768523439293,-1000.0,0.000104,2]
[402112208,1768523439302,-587.0,0.0001094,2]
[402112210,1768523439312,-255.02146525,0.00011041,2]
[402112211,1768523439322,-864.0,0.00011161,2]
[402112213,1768523439333,-157.55153556,0.00011772,2]
[402112215,1768523439343,-823.0,0.00012034,2]
[402112216,1768523439355,-1000.0,0.00012277,2]
[402112218,1768523439364,-500.0,0.00012329,2]
[402112220,1768523439373,-500.0,0.00012329,2]
[402112221,1768523439382,-500.0,0.00012329,2]
[402112223,1768523439393,-500.0,0.00012329,2]
[402112224,1768523439408,-500.0,0.00012329,2]
[402112226,1768523439419,-500.0,0.00012329,2]
[402112228,1768523439428,-500.0,0.00012329,2]
[402112229,1768523439437,-500.0,0.00012329,2]
[402112231,1768523439448,-500.0,0.00012329,2]
[402112233,1768523439457,-500.0,0.00012329,2]
[402112235,1768523439467,-500.0,0.00012329,2]
[402112236,1768523439477,-500.0,0.00012329,2]
[402112238,1768523439487,-500.0,0.00012329,2]
[402112240,1768523439496,-500.0,0.00012329,2]
[402112241,1768523439506,-500.0,0.00012329,2]
[402112243,1768523439515,-500.0,0.00012329,2]
[402112245,1768523439525,-500.0,0.00012329,2]
[402112247,1768523439535,-247.01417195,0.00012329,2]
[402112248,1768523439544,-500.0,0.00012329,2]
[402112250,1768523439556,-500.0,0.00012329,2]
[402112252,1768523439565,-500.0,0.00012329,2]
[402112254,1768523439575,-500.0,0.00012329,2]
[402112255,1768523439584,-500.0,0.00012329,2]
[402112257,1768523439593,-500.0,0.00012329,2]
[402112259,1768523439603,-500.0,0.00012329,2]
[402112261,1768523439612,-500.0,0.00012329,2]
[402112262,1768523439622,-500.0,0.00012329,2]
[402112263,1768523439631,-500.0,0.00012329,2]
[402112264,1768523439641,-500.0,0.00012329,2]
[402112266,1768523439650,-8134.19335057,0.000125,2]
[402112267,1768523439660,-584.89175968,0.00012868,2]
[402112269,1768523439670,-629.0,0.00012886,2]
[402112271,1768523439679,-1367.0,0.00012886,2]
[402112272,1768523439689,-7366.08710681,0.000129,2]
[402112273,1768523439698,-7366.08710675,0.000129,2]
[402112275,1768523439708,-293.92304469,0.00013041,2]
[402112277,1768523439726,-1152.0,0.00013237,2]
[402112278,1768523439736,-500.0,0.00013273,2]
[402112280,1768523439746,-1000.0,0.00013505,2]
[402112281,1768523439756,-244.0,0.00013505,2]
[402112283,1768523439766,-500.0,0.00013698,2]
[402112284,1768523439775,-349.26,0.00013698,2]
[402112286,1768523439784,-1000.0,0.00013699,2]
[402112287,1768523439794,-500.0,0.00013699,2]
[402112289,1768523439804,-500.0,0.00013699,2]
[402112291,1768523439813,-2048.49,0.00013775,2]
[402112292,1768523439822,-1000.0,0.00013821,2]
[402112294,1768523439832,-7366.08710675,0.00014187,2]
[402112296,1768523439840,-1000.0,0.00014247,2]
[402112297,1768523439850,-1000.0,0.00014247,2]
[402112299,1768523439859,-1500.0,0.00014368,2]
[402112301,1768523439868,-157.55153556,0.00014419,2]
[402112320,1768523440109,-1508.0,0.00014561,2]
[402112321,1768523440119,-1500.0,0.00014795,2]
[402112323,1768523440129,-1000.0,0.00014855,2]
[402112324,1768523440138,-492.0,0.00014855,2]
[402112326,1768523440147,-595.0712599,0.000149,2]
[402112327,1768523440157,-1503.04077884,0.00014916,2]
[402112329,1768523440166,-5000.0,0.00014999,2]
[402112330,1768523440175,-1372.56361004,0.00015,3]
[402112332,1768523440184,-151.02787374,0.00015,2]
[402112333,1768523440194,-91114.35744577,0.00015,7]
[402112335,1768523440203,-332.82462414,0.00015041,2]
[402112336,1768523440213,-163.995173,0.00015068,2]
[402112337,1768523440222,-2000.0,0.00015342,2]
[402112338,1768523440232,-901.3829599,0.00015749,30]
[402112339,1768523440241,-190.0,0.00015749,30]
[402112340,1768523440251,-499.3,0.00015749,30]
[402112341,1768523440260,-500.0,0.00015749,30]
[402112342,1768523440269,-500.0,0.00015749,30]
[402112343,1768523440279,-523.03503726,0.00015749,30]
[402112344,1768523440288,-500.0,0.00015749,30]
[402112345,1768523440298,-500.0,0.00015749,30]
[402112346,1768523440308,-500.0,0.00015749,30]
[402112347,1768523440317,-791.66062171,0.00015749,30]
[402112348,1768523440327,-500.0,0.00015749,30]
[402112349,1768523440336,-500.0,0.00015749,30]
[402112350,1768523440346,-500.0,0.00015749,30]
[402112351,1768523440356,-500.0,0.00015749,30]
[402112352,1768523440365,-500.0,0.00015749,30]
[402112353,1768523440374,-500.0,0.00015749,30]
[402112354,1768523440384,-500.0,0.00015749,30]
[402112355,1768523440393,-500.0,0.00015749,30]
[402112356,1768523440407,-500.0,0.00015749,30]
[402112357,1768523440417,-500.0,0.00015749,30]
[402112358,1768523440426,-500.0,0.00015749,30]
[402112359,1768523440436,-500.0,0.00015749,30]
[402112360,1768523440447,-500.0,0.00015749,30]
[402112361,1768523440456,-500.0,0.00015749,30]
[402112362,1768523440466,-1000.0,0.00015749,30]
[402112363,1768523440477,-500.0,0.00015749,30]
[402112364,1768523440497,-500.0,0.00015749,30]
[402112365,1768523440508,-1000.0,0.00015749,30]
[402112366,1768523440517,-500.0,0.00015749,30]
[402112367,1768523440528,-500.0,0.00015749,30]
[402112368,1768523440538,-1000.0,0.00015749,30]
[402112369,1768523440547,-500.0,0.00015749,30]
[402112370,1768523440556,-500.0,0.00015749,30]
[402112371,1768523440568,-1000.0,0.00015749,30]
[402112372,1768523440577,-500.0,0.00015749,30]
[402112373,1768523440586,-500.0,0.00015749,30]
[402112374,1768523440595,-1000.0,0.00015749,30]
[402112375,1768523440604,-500.0,0.00015749,30]
[402112376,1768523440613,-500.0,0.00015749,30]
[402112377,1768523440622,-1000.0,0.00015749,30]
[402112378,1768523440631,-500.0,0.00015749,30]
[402112379,1768523440640,-500.0,0.00015749,30]
[402112380,1768523440649,-1000.0,0.00015749,30]
[402112381,1768523440658,-500.0,0.00015749,30]
[402112382,1768523440667,-500.0,0.00015749,30]
[402112383,1768523440676,-1000.0,0.00015749,30]
[402112384,1768523440685,-500.0,0.00015749,30]
[402112385,1768523440694,-1000.0,0.00015749,30]
[402112386,1768523440703,-500.0,0.00015749,30]
[402112387,1768523440712,-500.0,0.00015749,30]
[402112388,1768523440721,-1000.0,0.00015749,30]
[402112389,1768523440730,-500.0,0.00015749,30]
[402112391,1768523440739,-1000.0,0.00015749,30]
[402112393,1768523440748,-1000.0,0.00015749,30]
[402112394,1768523440757,-500.0,0.00015749,30]
[402112395,1768523440766,-1000.0,0.00015749,30]
[402112396,1768523440775,-1000.0,0.00015749,30]
[402112397,1768523440784,-629.0,0.00015886,2]
[402112398,1768523440792,-1367.0,0.00015886,2]
[402112399,1768523440801,-2500.0,0.0001589,2]
[402112400,1768523440810,-46377.11858497,0.0001599,2]
[402112401,1768523440818,-215.91779165,0.00016,2]
[402112402,1768523440827,-151.0,0.000162,2]
[402112403,1768523440836,-1000.0,0.00016341,2]
[402112404,1768523440845,-791.0,0.00016341,2]
[402112405,1768523440854,-357.4,0.00016438,2]
[402112406,1768523440863,-164.30818849,0.00016438,2]
[402112407,1768523440872,-1500.0,0.00016438,2]
[402112408,1768523440881,-360.2449669,0.00016586,2]
[402112409,1768523440890,-2337.22747168,0.00016765,2]
[402112410,1768523440899,-151.0,0.000168,2]
[402112411,1768523440908,-7366.08710675,0.00016809,2]
[402112412,1768523440917,-111514.58939411,0.00017,2]
[402112413,1768523440926,-58714.84468794,0.0001701,3]
[402112414,1768523440935,-357.4,0.00017011,2]
[402112415,1768523440944,-371.72620358,0.00017041,2]
[402112416,1768523440953,-157.55153556,0.00017067,2]
[402112417,1768523440962,-1041.66666667,0.00017325,2]
[402112418,1768523440972,-151.0,0.000174,2]
[402112419,1768523440981,-357.4,0.00017584,2]
[402112420,1768523440990,-6452.58022243,0.000178,3]
[402112421,1768523440999,-291.0,0.00017812,2]
[402112422,1768523441008,-1000.0,0.00017975,2]
[402112423,1768523441017,-842.0,0.00017975,2]
[402112424,1768523441027,-337.0,0.00017989,2]
[402112425,1768523441036,-5000.0,0.00017998,2]
[402112426,1768523441045,-9761.90587199,0.00018,2]
[402112427,1768523441054,-151.0,0.00018,2]
[402112428,1768523441063,-3000.0,0.00018027,7]
[402112429,1768523441072,-357.4,0.00018156,2]
[402112430,1768523441081,-419.0,0.00018177,2]
[402112431,1768523441090,-151.0,0.000186,2]
[402112432,1768523441099,-357.4,0.00018729,2]
[402112433,1768523441108,-1156.81981869,0.00018851,2]
[402112434,1768523441117,-30000.0,0.00018851,2]
[402112435,1768523441126,-151.0,0.00018851,2]
[402112436,1768523441135,-151.0,0.00018851,2]
[402112437,1768523441144,-151.0,0.00018851,2]
[402112438,1768523441153,-6452.54,0.00018878,3]
[402112439,1768523441162,-629.0,0.00018886,2]
[402112440,1768523441171,-1367.0,0.00018886,2]
[402112441,1768523441180,-303.10001603,0.000189,2]
[402112442,1768523441189,-303.10001603,0.000189,2]
[402112443,1768523441198,-151.0,0.00019,2]
[402112444,1768523441208,-410.62778303,0.00019041,2]
[402112445,1768523441217,-427.04249232,0.00019089,2]
[402112446,1768523441226,-303.10001603,0.00019089,2]
[402112447,1768523441235,-3000.0,0.00019123,7]
[402112448,1768523441244,-507.2385,0.00019178,2]
[402112449,1768523441253,-200.0,0.00019178,2]
[402112450,1768523441262,-507.2385,0.00019178,2]
[402112451,1768523441271,-507.2385,0.00019178,2]
[402112452,1768523441280,-507.2385,0.00019178,2]
[402112453,1768523441289,-507.2385,0.00019178,2]
[402112454,1768523441298,-845.3974,0.00019178,2]
[402112455,1768523441307,-507.23,0.00019178,2]
[402112456,1768523441316,-1268.0962,0.00019178,2]
[402112457,1768523441325,-1014.49,0.00019178,2]
[402112458,1768523441334,-507.24,0.00019178,2]
[402112459,1768523441343,-507.24,0.00019178,2]
[402112460,1768523441352,-507.24,0.00019178,2]
[402112461,1768523441361,-840.51,0.00019178,2]
[402112462,1768523441370,-1353.9,0.00019178,2]
[402112463,1768523441379,-1353.9,0.00019178,2]
[402112464,1768523441387,-1353.9,0.00019178,2]
[402112465,1768523441397,-1353.9,0.00019178,2]
[402112466,1768523441409,-1353.9,0.00019178,2]
[402112467,1768523441419,-1353.9,0.00019178,2]
[402112468,1768523441428,-1353.9,0.00019178,2]
[402112469,1768523441437,-1353.9,0.00019178,2]
[402112470,1768523441446,-1353.9,0.00019178,2]
[402112471,1768523441455,-1353.9,0.00019178,2]
[402112472,1768523441465,-1353.9,0.00019178,2]
[402112473,1768523441474,-1353.9,0.00019178,2]
[402112474,1768523441486,-1353.9,0.00019178,2]
[402112475,1768523441495,-1353.9,0.00019178,2]
[402112476,1768523441504,-1353.9,0.00019178,2]
[402112477,1768523441513,-1353.9,0.00019178,2]
[402112478,1768523441522,-1353.9,0.00019178,2]
[402112479,1768523441532,-1353.9,0.00019178,2]
[402112480,1768523441541,-1353.9,0.00019178,2]
[402112481,1768523441550,-1353.9,0.00019178,2]
[402112482,1768523441559,-1353.9,0.00019178,2]
[402112483,1768523441567,-1353.9,0.00019178,2]
[402112484,1768523441577,-1353.9,0.00019178,2]
[402112485,1768523441586,-1354.09299172,0.00019178,2]
[402112486,1768523441595,-507.23,0.00019178,2]
[402112487,1768523441604,-5000.0,0.00019178,2]
[402112488,1768523441614,-5000.0,0.00019178,2]
[402112489,1768523441623,-5000.0,0.00019178,2]
[402112490,1768523441633,-5000.0,0.00019178,2]
[402112491,1768523441643,-5000.0,0.00019178,2]
[402112492,1768523441652,-5000.0,0.00019178,2]
[402112493,1768523441662,-192.13,0.000192,2]
[402112494,1768523441671,-3036.1,0.000192,2]
[402112495,1768523441681,-159.77,0.000192,2]
[402112496,1768523441690,-167.84,0.000192,2]
[402112497,1768523441700,-17112.67,0.000192,2]
[402112498,1768523441709,-151.0,0.000192,2]
[402112499,1768523441718,-303.10001603,0.00019278,2]
[402112500,1768523441728,-357.4,0.00019302,2]